[Event "2nd Serbia Open Masters 2022"]
[Site "Novi Sad"]
[Date "2022.06.30"]
[Round "3.45"]
[White "Risteski, Emil"]
[Black "Aakash Sharadchandra, Dalvi"]
[Result "1/2-1/2"]
[ECO "B52"]
[WhiteElo "2391"]
[BlackElo "2074"]
[Annotator "TA"]
[PlyCount "275"]
[EventDate "2022.06.28"]
[EventType "swiss"]
[EventCountry "SRB"]
[SourceTitle "playchess.com"]
[Source "ChessBase"]
[SourceQuality "1"]
[TimeControl "40/5400+30:900+30"]

{[%evp 60,275,98,47,58,52,72,73,69,10,16,16,16,16,18,25,16,15,16,0,102,0,22,0,0,0,0,0,0,0,0,0,0,0,0,0,0,0,4,7,34,37,64,64,165,0,0,0,0,0,0,0,0,0,0,0,0,0,0,0,0,0,0,0,0,0,0,0,0,0,0,0,0,0,0,0,0,0,0,0,0,0,0,0,0,0,0,0,0,0,0,0,0,0,0,0,0,0,0,0,0,0,0,0,0,0,0,0,0,0,0,0,0,0,0,0,0,0,0,0,0,0,0,0,0,0,0,0,0,0,0,0,0,0,0,0,0,0,0,0,0,0,0,0,0,0,0,0,0,0,0,0,0,0,0,0,0,0,0,0,0,0,0,0,0,0,0,0,0,0,0,0,0,0,0,0,0,0,0,0,0,0,0,0,0,0,0,0,0,0,0,0,0,0,0,0,0,0,0,0,0,0,0,0,0,0,0,0,34,0,0,0,29979,29980,29977,0,0,0]} 1. e4 {[%emt 0:00:10]} c5 {[%emt 0:03:30]} 2. Nf3 {[%emt 0:00:16]} d6 {[%emt 0:00:06]} 3. Bb5+ {[%emt 0:00:33]} Bd7 {[%emt 0:00:13]} 4. Bxd7+ {[%emt 0:00:11]} Nxd7 {[%emt 0:00:06]} 5. O-O {[%emt 0:00:08]} Ngf6 {[%emt 0:00:07]} 6. Re1 {[%emt 0:00:19]} e6 {[%emt 0:00:42]} 7. c3 {[%emt 0:00:29]} Be7 {[%emt 0:00:15]} 8. d4 {[%emt 0:00:26]} O-O {[%emt 0:00:25]} 9. Nbd2 {[%emt 0:00:55]} cxd4 {[%emt 0:00:23]} 10. cxd4 {[%emt 0:00:10]} Rc8 {[%emt 0:01:42]} 11. b3 {[%emt 0:06:31]} Qc7 {[%emt 0:05:36]} 12. Ba3 {[%emt 0:03:48]} Qa5 {[%emt 0:01:39]} 13. Bb2 {[%emt 0:00:47]} Rc7 {[%emt 0:02:54]} 14. a4 {[%emt 0:09:43]} Rfc8 {[%emt 0:06:51]} 15. Nc4 {[%emt 0:01:55]} Qa6 {[%emt 0:01:19]} 16. Ba3 {[%emt 0:01:47]} Bf8 {[%emt 0:02:00]} 17. e5 {[%emt 0:00:55]} Ne8 {[%emt 0:12:48]} 18. d5 {[%emt 0:07:11]} exd5 {[%emt 0:00:32]} 19. Qxd5 {[%emt 0:00:16]} dxe5 {[%emt 0:01:08]} 20. Bxf8 {[%emt 0:00:27]} Nxf8 {[%emt 0:01:24]} 21. Nfxe5 {[%emt 0:05:31]} Ng6 {[%emt 0:07:35]} 22. Rad1 {[%emt 0:04:14]} Nf6 {[%emt 0:01:53]} 23. Qd4 {[%emt 0:06:53]} Nxe5 {[%emt 0:05:20]} 24. Qxe5 {[%emt 0:00:28]} h6 {[%emt 0:00:51]} 25. h3 {[%emt 0:10:45]} Rc5 {[%emt 0:05:54]} 26. Qe7 {[%emt 0:06:13]} Qc6 {[%emt 0:05:12]} 27. Nd6 {[%emt 0:32:59]} Rc7 {[%emt 0:03:51]} 28. Qd8+ {[%emt 0:00:00]} Kh7 {[%emt 0:00:08]} 29. Ne8 {[%emt 0:00:00]} Rc8 {[%emt 0:03:42]} 30. Nxf6+ {[%emt 0:00:00]} gxf6 {[%emt 0:00:12]} 31. Qd3+ {[%emt 0:00:00]} (31. Qd7 $16 Rc7 32. Qd8) 31... Kg7 $1 $14 {[%emt 0:01:13]} 32. h4 {[%emt 0:00:00]} Re8 {[%emt 0:03:15]} 33. Rxe8 {[%emt 0:00:00]} Qxe8 {[%emt 0:00:04]} 34. Qd7 {[%emt 0:00:00]} (34. Qg3+ $14 Kh7 35. Qf4) 34... Qe2 {[%emt 0:02:33]} 35. Rd3 {[%emt 0:00:00]} Rc3 $1 {[%emt 0:04:06]} (35... Rc1+ $2 36. Kh2 Qe6 37. Qxb7 $18) 36. Rxc3 {[%emt 0:00:00]} Qe1+ {[%emt 0:00:06]} 37. Kh2 {[%emt 0:00:00]} Qxc3 {[%emt 0:00:07]} 38. Qxb7 {[%emt 0:00:00]} Qd4 $1 {[%emt 0:00:37]} 39. Kg1 {[%emt 0:00:00]} Qd1+ {[%emt 0:00:20]} 40. Kh2 {[%emt 0:00:00]} Qd4 $1 {[%emt 0:00:00]} 41. Kg3 {[%emt 0:00:00]} Qe5+ $1 {[%emt 0:03:40]} 42. f4 {[%emt 0:00:00]} Qe1+ {[%emt 0:00:19]} 43. Kh3 {[%emt 0:00:00]} Qe6+ {[%emt 0:06:10]} 44. Kg3 {[%emt 0:00:11]} Qe1+ {[%emt 0:00:08]} 45. Kf3 {[%emt 0:04:00]} Qd1+ {[%emt 0:02:39]} 46. Ke3 {[%emt 0:00:39]} a5 {[%emt 0:04:02]} 47. Qb5 {[%emt 0:02:50]} h5 {[%emt 0:00:27]} 48. Qxa5 {[%emt 0:00:49]} Qxb3+ {[%emt 0:00:17]} 49. Kf2 {[%emt 0:03:03]} Qc2+ {[%emt 0:05:13]} 50. Kg3 {[%emt 0:00:28]} Qd1 {[%emt 0:00:27]} 51. Kh2 $1 {[%emt 0:01:17]} Kg6 {[%emt 0:09:19]} ({Better is} 51... Qd4 $14) 52. f5+ $2 {[%emt 0:03:03]} (52. Qb4 $18) 52... Kg7 $11 {[%emt 0:00:09]} 53. Qb4 {[%emt 0:00:09]} Qa1 {[%emt 0:00:43]} 54. a5 {[%emt 0:03:35]} Qe5+ {[%emt 0:00:14]} 55. Kg1 {[%emt 0:00:01]} Qxf5 {[%emt 0:01:25]} 56. a6 {[%emt 0:02:28]} Qe5 {[%emt 0:00:18]} 57. Qc4 {[%emt 0:00:34]} Qe1+ {[%emt 0:00:44]} 58. Qf1 {[%emt 0:01:26]} Qa5 {[%emt 0:00:25]} 59. Qe2 {[%emt 0:00:39]} Qa4 {[%emt 0:00:50]} 60. g3 {[%emt 0:01:55]} Qd4+ {[%emt 0:00:57]} 61. Kh2 {[%emt 0:00:21]} Qa4 {[%emt 0:00:26]} 62. Kg1 {[%emt 0:00:40]} Qd4+ {[%emt 0:00:12]} 63. Kg2 {[%emt 0:00:15]} Qd5+ {[%emt 0:00:17]} 64. Kh2 {[%emt 0:00:32]} Qa5 {[%emt 0:00:10]} 65. Qd3 {[%emt 0:00:16]} Qa2+ {[%emt 0:01:39]} 66. Kg1 {[%emt 0:00:07]} Qb2 {[%emt 0:00:30]} 67. Qc4 {[%emt 0:01:11]} Qb6+ {[%emt 0:01:21]} 68. Kg2 {[%emt 0:00:17]} Qa5 {[%emt 0:00:33]} 69. Kf3 {[%emt 0:01:31]} Qf5+ {[%emt 0:00:18]} 70. Ke3 {[%emt 0:00:41]} Qa5 {[%emt 0:00:10]} 71. Kd3 {[%emt 0:00:33]} Qa1 {[%emt 0:00:36]} 72. Kc2 {[%emt 0:01:14]} Qa3 {[%emt 0:00:13]} 73. Qd3 {[%emt 0:00:22]} Qb4 {[%emt 0:00:24]} 74. Kc1 {[%emt 0:01:02]} Qb6 {[%emt 0:00:36]} 75. Kd2 {[%emt 0:00:39]} Qa5+ {[%emt 0:00:24]} 76. Ke2 {[%emt 0:00:34]} Qe5+ {[%emt 0:00:19]} 77. Kf3 {[%emt 0:00:12]} Qa5 {[%emt 0:00:15]} 78. Qc4 {[%emt 0:00:46]} Qf5+ {[%emt 0:01:06]} 79. Kg2 {[%emt 0:00:05]} Qa5 {[%emt 0:00:07]} 80. Qe2 {[%emt 0:01:37]} Qd5+ {[%emt 0:00:12]} 81. Kg1 {[%emt 0:00:07]} Qa5 {[%emt 0:00:11]} 82. Kh2 {[%emt 0:00:09]} Qa3 {[%emt 0:00:21]} 83. Qb5 {[%emt 0:00:32]} Qa2+ {[%emt 0:00:41]} 84. Kh3 {[%emt 0:00:14]} Qa1 {[%emt 0:00:44]} 85. Kg2 {[%emt 0:00:34]} (85. Qxh5 Qh1+ 86. Kg4 Qd1+ 87. Kf5 Qxh5+ $19) 85... Qa3 {[%emt 0:02:20]} 86. Qb7 {[%emt 0:00:53]} Qa2+ {[%emt 0:01:35]} 87. Kf3 {[%emt 0:00:19]} Qa3+ {[%emt 0:00:10]} 88. Ke4 {[%emt 0:00:37]} Qxg3 {[%emt 0:01:13]} 89. Kd5 {[%emt 0:00:04]} Qe5+ {[%emt 0:00:21]} 90. Kc6 {[%emt 0:00:07]} Qe6+ {[%emt 0:00:23]} 91. Kb5 {[%emt 0:00:25]} Qe5+ {[%emt 0:00:53]} 92. Kb6 {[%emt 0:00:55]} Qd4+ {[%emt 0:00:11]} 93. Ka5 {[%emt 0:00:05]} Qa1+ {[%emt 0:00:11]} 94. Kb5 {[%emt 0:00:18]} Qe5+ {[%emt 0:00:07]} 95. Kc4 {[%emt 0:00:15]} Qe2+ {[%emt 0:00:57]} 96. Kd4 {[%emt 0:00:39]} Qe5+ {[%emt 0:00:33]} 97. Kd3 {[%emt 0:00:08]} Qd6+ {[%emt 0:00:15]} 98. Ke2 {[%emt 0:00:10]} Qe5+ {[%emt 0:00:52]} 99. Kd3 {[%emt 0:00:41]} Qd6+ {[%emt 0:00:07]} 100. Kc4 {[%emt 0:00:03]} Qe6+ {[%emt 0:00:13]} 101. Kb4 {[%emt 0:00:29]} Qe1+ {[%emt 0:00:30]} 102. Kc5 {[%emt 0:00:31]} Qe3+ {[%emt 0:00:32]} 103. Kc6 {[%emt 0:00:39]} Qe6+ {[%emt 0:00:10]} 104. Kc7 {[%emt 0:00:03]} Qe5+ {[%emt 0:00:13]} 105. Kd8 {[%emt 0:00:05]} Qd6+ {[%emt 0:02:11]} 106. Kc8 {[%emt 0:00:04]} Qe6+ {[%emt 0:00:18]} 107. Kb8 {[%emt 0:00:04]} Qd6+ {[%emt 0:00:35]} 108. Ka7 {[%emt 0:00:21]} Qd4+ {[%emt 0:00:45]} 109. Qb6 {[%emt 0:00:13]} Qd7+ {[%emt 0:00:31]} 110. Kb8 {[%emt 0:00:10]} Qe8+ {[%emt 0:00:25]} 111. Kb7 {[%emt 0:00:20]} Qd7+ {[%emt 0:00:38]} 112. Qc7 {[%emt 0:00:00]} Qb5+ {[%emt 0:00:21]} 113. Ka7 {[%emt 0:00:00]} Kg6 {[%emt 0:01:04]} 114. Qg3+ {[%emt 0:00:59]} Kh7 {[%emt 0:00:13]} 115. Qd6 {[%emt 0:00:04]} Kg7 {[%emt 0:00:15]} 116. Ka8 {[%emt 0:00:12]} Qe8+ {[%emt 0:00:52]} 117. Kb7 {[%emt 0:00:06]} Qb5+ {[%emt 0:00:16]} 118. Kc7 {[%emt 0:00:19]} Qa5+ {[%emt 0:00:45]} 119. Kc8 {[%emt 0:00:19]} Qf5+ {[%emt 0:00:41]} 120. Kd8 {[%emt 0:02:09]} Qa5+ {[%emt 0:00:08]} 121. Ke8 {[%emt 0:00:34]} Qa4+ {[%emt 0:01:08]} 122. Ke7 {[%emt 0:00:30]} Qe4+ {[%emt 0:00:13]} 123. Kd7 {[%emt 0:00:05]} Qf5+ {[%emt 0:00:16]} 124. Kc7 {[%emt 0:01:14]} Qa5+ {[%emt 0:00:14]} 125. Kb8 {[%emt 0:00:24]} Qb5+ {[%emt 0:00:07]} 126. Kc8 {[%emt 0:00:24]} Qf5+ {[%emt 0:00:14]} 127. Kb7 {[%emt 0:03:02]} Qb5+ {[%emt 0:00:05]} 128. Ka7 {[%emt 0:00:04]} Kg6 {[%emt 0:00:18]} 129. Ka8 {[%emt 0:01:16]} Qe8+ {[%emt 0:00:06]} 130. Kb7 {[%emt 0:00:02]} Qb5+ {[%emt 0:00:06]} 131. Kc7 {[%emt 0:00:07]} Qa5+ {[%emt 0:00:10]} 132. Kd7 {[%emt 0:00:09]} Qf5+ {[%emt 0:00:37]} 133. Kd8 {[%emt 0:00:16]} Qa5+ {[%emt 0:00:15]} 134. Ke7 {[%emt 0:00:35]} (134. Ke8 $5 {[%cal Re8f8]}) 134... Qe1+ {[%emt 0:01:02]} 135. Kf8 {[%emt 0:00:08]} Qa5 $2 {[%emt 0:00:40][%mdl 8192]} (135... Qc3 $11) 136. Qd3+ {[%emt 0:00:33]} Kh6 {[%emt 0:02:03]} 137. Kg8 $2 {[%emt 0:00:30]} (137. Qe3+ {mates} Kg6 138. Qd3+ Qf5) 137... Qf5 $1 $11 {[%emt 0:01:07]} 138. Qe3+ {[%emt 0:00:15]} 1/2-1/2

[Event "2nd Serbia Open Masters 2022"]
[Site "Novi Sad"]
[Date "2022.06.30"]
[Round "3.46"]
[White "Demchenko, Anton"]
[Black "Saravanan, V.."]
[Result "1-0"]
[ECO "C06"]
[WhiteElo "2654"]
[BlackElo "2324"]
[Annotator "TA"]
[PlyCount "67"]
[EventDate "2022.06.28"]
[EventType "swiss"]
[EventCountry "SRB"]
[SourceTitle "playchess.com"]
[Source "ChessBase"]
[SourceQuality "1"]
[TimeControl "40/5400+30:900+30"]

{[%evp 15,67,8,6,-21,34,26,38,29,30,18,50,45,70,61,75,76,75,67,108,105,108,108,131,115,124,121,178,175,154,89,127,104,143,141,137,137,137,137,155,147,134,145,163,159,197,118,285,280,189,195,525,519,584,404]} 1. e4 {[%emt 0:00:04][%cal Be2e4,Be4e5][%mdl 32]} e6 {[%emt 0:00:06]} 2. d4 {[%emt 0:00:09]} d5 {[%emt 0:00:05]} 3. Nd2 {[%emt 0:00:04]} Nf6 {[%emt 0:00:08]} 4. e5 {[%emt 0:00:04]} Nfd7 {[%emt 0:00:07]} 5. c3 {[%emt 0:00:06]} c5 {[%emt 0:00:10]} 6. Bd3 {[%emt 0:00:29]} Nc6 {[%emt 0:00:09]} 7. Ngf3 {[%emt 0:00:05]} g6 {[%emt 0:01:22] was the old line (7...Qb6).} 8. O-O {[%emt 0:04:23]} Bg7 {[%emt 0:00:07]} 9. Nb1 $5 {[%emt 0:25:28][%cal Bd2b1,Bb1a3,Ba3c2,Bc2e3][%mdl 4] [#] A promising side line. C06: French Tarrasch: 3...Nf6 4 e5 Nfd7 5 Bd3 main lines.} b6 $146 {[%emt 0:08:47]} (9... Qb6 $11) ({Predecessor:} 9... O-O 10. Bg5 Qb6 11. dxc5 Qxb2 12. Nbd2 Qxc3 13. Nb3 Ndxe5 14. Nxe5 Qxe5 15. f4 Qc7 16. Rc1 Bd7 {0-1 (34) Lyons,B (2135)-Burns,J Dublin 1998}) 10. Bg5 $14 {[%emt 0:01:58]} Qc7 {[%emt 0:02:14]} 11. Na3 {[%emt 0:00:30] White is slightly better.} a6 {[%emt 0:01:31] Against Nb5} 12. Qd2 {[%emt 0:04:09]} c4 {[%emt 0:05:21]} 13. Bc2 {[%emt 0:05:08]} h6 {[%emt 0:00:11]} 14. Bf4 {[%emt 0:01:31] White is more active.} b5 {[%emt 0:00:25]} 15. Bd1 {[%emt 0:01:55]} Nb6 {[%emt 0:03:38]} 16. Nc2 {[%emt 0:00:11]} Bd7 {[%emt 0:01:29]} 17. Ne3 {[%emt 0:01:36]} O-O-O {[%emt 0:06:42]} 18. b3 {[%emt 0:04:30]} Ne7 {[%emt 0:01:34]} 19. Be2 {[%emt 0:07:27]} g5 {[%emt 0:07:49]} 20. Bg3 {[%emt 0:00:15]} Ng6 {[%emt 0:00:36]} (20... Bc6 $16 {was worth a try.}) 21. Rfb1 $18 {[%emt 0:10:03]} h5 {[%emt 0:13:39]} 22. h3 {[%emt 0:01:14]} ({White should try} 22. Nxg5 {Hoping for h4.} h4 23. Nxf7) 22... Bh6 $16 {[%emt 0:01:01]} 23. a4 {[%emt 0:02:09][%cal Ba2a4,Ba4a5][%mdl 32]} ({Don't take} 23. bxc4 $6 dxc4 24. a4 g4 25. hxg4 hxg4 $14) 23... Nf4 {[%emt 0:01:44]} 24. a5 {[%emt 0:06:33]} Na8 {[%emt 0:02:42]} 25. Bxf4 {[%emt 0:00:36]} gxf4 {[%emt 0:00:10]} 26. Nc2 {[%emt 0:00:01]} Bc6 {[%emt 0:03:13]} 27. Qd1 {[%emt 0:00:22]} Bb7 {[%emt 0:03:10]} 28. Nd2 {[%emt 0:00:33]} h4 {[%emt 0:00:12]} 29. Bf3 {[%emt 0:05:52]} Rhg8 {[%emt 0:07:52]} 30. Ra2 {[%emt 0:00:34]} (30. Na3 $18) 30... Kd7 $2 {[%emt 0:02:21] This move loses the game for Black.} (30... Bf8 $16) 31. bxc4 $18 {[%emt 0:02:20]} dxc4 {[%emt 0:00:29]} 32. Ne4 {[%emt 0:00:08] [#] Strongly threatening Nc5+.} Bxe4 {[%emt 0:03:02]} (32... Kc8 33. Nb4 Bf8) 33. Bxe4 {[%emt 0:00:02]} Ke8 {[%emt 0:00:35]} 34. Qf3 {[%emt 0:01:44] Weighted Error Value: White=0.09 (flawless) /Black=0.35} 1-0

[Event "2nd Serbia Open Masters 2022"]
[Site "Novi Sad"]
[Date "2022.06.30"]
[Round "3.47"]
[White "Blagojevic, Tijana"]
[Black "Piorun, Kacper"]
[Result "0-1"]
[ECO "C02"]
[WhiteElo "2315"]
[BlackElo "2635"]
[Annotator "TA"]
[PlyCount "128"]
[EventDate "2022.06.28"]
[EventType "swiss"]
[EventCountry "SRB"]
[SourceTitle "playchess.com"]
[Source "ChessBase"]
[SourceQuality "1"]
[TimeControl "40/5400+30:900+30"]

{[%evp 19,128,11,40,6,20,8,0,12,47,45,38,40,50,45,28,9,13,8,34,0,0,0,0,-3,0,0,0,0,0,-47,-47,-47,-48,-48,-52,-96,-52,-64,-44,-54,-20,-24,-7,-70,-71,-94,-82,-92,-95,-133,-128,-137,-129,-131,-130,-134,-132,-129,-138,-183,-109,-127,-121,-138,-118,-140,-165,-160,-120,-180,-183,-237,-211,-204,-202,-241,-167,-158,-53,-310,-299,-309,-313,-303,-298,-308,-268,-289,-278,-391,-366,-373,-327,-339,-314,-435,-401,-401,-233,-218,-227,-381,-381,-350,-308,-5470,-5189,-4618,-4133,-2315,-1745]} 1. e4 {[%emt 1:31:00][%cal Be2e4,Be4e5][%mdl 32]} e6 {[%emt 1:31:00]} 2. d4 {[%emt 0:00:30]} d5 {[%emt 0:00:30]} 3. e5 {[%emt 0:00:30]} c5 {[%emt 0:00:30]} 4. c3 {[%emt 0:00:30]} Nc6 {[%emt 0:00:30]} 5. Nf3 {[%emt 0:00:30]} Bd7 {[%emt 0:00:30]} 6. Be2 {[%emt 0:00:30]} f6 {[%emt 0:00:30]} 7. O-O {[%emt 0:00:30]} fxe5 {[%emt 0:00:30]} 8. Nxe5 {[%emt 0:00:30]} Nxe5 {[%emt 0:00:30]} 9. dxe5 {[%emt 0:00:30]} Qc7 {[%emt 0:00:30]} 10. c4 {[%emt 0:00:30]} O-O-O {[%emt 0:00:30]} 11. cxd5 {[%emt 0:00:30] C02: French: Advance Variation.} (11. Nc3 $5 {[%cal Rc4d5]}) 11... Qxe5 {[%emt 0:00:30]} 12. Nc3 {[%emt 0:00:30] With the idea Bf3.} Nf6 {[%emt 0:00:30][%cal Re6d5]} 13. dxe6 {[%emt 0:00:30] The position is equal.} Qxe6 {[%emt 0:00:30]} (13... Bc6 $5 {[%cal Rd8d1]} 14. Qb3 (14. f4 Qxe6 15. Qe1 Bd6 $11) 14... c4 15. Qxc4 Rd4 $11) 14. Bf4 {[%emt 0:00:30]} Bc6 {[%emt 0:00:30]} 15. Qc2 {[%emt 0:00:30] And now Nb5 would win.} Bd6 {[%emt 0:00:30]} 16. Bxd6 {[%emt 0:00:30]} Qxd6 {[%emt 0:00:30] [#]} 17. b4 $146 {[%emt 0:00:30]} ({Predecessor:} 17. Rad1 Qf4 18. Nb5 Bxb5 19. Bxb5 b6 20. g3 Qc7 21. Rc1 Rd4 22. a3 Rhd8 23. b4 {1-0 (51) Markus,R (2356)-Noire,E (2191) IECG email 2001}) 17... Qd2 {[%emt 0:00:30]} 18. Qf5+ {[%emt 0:00:30]} Nd7 $1 {[%emt 0:00:30]} 19. b5 {[%emt 0:00:30]} (19. Rac1 $5 {[%cal Rb4b5]} Rhf8 20. Qg4 cxb4 21. Qxb4 $11) 19... Bxg2 $40 {[%emt 0:00:30][%mdl 128] Black attacks.} 20. Kxg2 {[%emt 0:00:30]} Qxc3 {[%emt 0:00:30]} 21. Rac1 {[%emt 0:00:30]} Qf6 {[%emt 0:00:30]} 22. Rxc5+ {[%emt 0:00:30]} Kb8 {[%emt 0:00:30]} 23. Qxf6 {[%emt 0:00:30]} Nxf6 {[%emt 0:00:30]} 24. b6 {[%emt 0:00:30]} (24. Bf3 $11 {might be stronger.}) 24... axb6 $15 {[%emt 0:00:30]} 25. Rb5 {[%emt 0:00:30]} Rhe8 {[%emt 0:00:30]} 26. Bf3 {[%emt 0:00:30]} Rd6 {[%emt 0:00:30]} 27. a4 {[%emt 0:00:30]} Nd7 {[%emt 0:00:30]} 28. a5 {[%emt 0:00:30]} Rg6+ {[%emt 0:00:30]} 29. Kh3 {[%emt 0:00:30]} Rf8 {[%emt 0:00:30]} 30. Be4 {[%emt 0:00:30]} Rh6+ {[%emt 0:00:30]} 31. Kg3 {[%emt 0:00:30]} ({Better is} 31. Kg2 $11) 31... Nf6 $1 {[%emt 0:00:30]} 32. Bf3 {[%emt 0:00:30]} Rg6+ {[%emt 0:00:30]} 33. Kh3 {[%emt 0:00:30] [#]} Ne8 $1 {[%emt 0:00:30]} 34. Bh1 {[%emt 0:00:30] [#]} Nd6 $1 {[%emt 0:00:30]} 35. Rxb6 {[%emt 0:00:30]} Rf5 {[%emt 0:00:30][%cal Rf5h5]} 36. Rb4 {[%emt 0:00:30]} Rxa5 {[%emt 0:00:30]} 37. Re1 {[%emt 0:00:30]} Kc7 {[%emt 0:00:30]} 38. Rh4 {[%emt 0:00:30]} h6 {[%emt 0:00:30]} 39. Bf3 {[%emt 0:00:30]} Rf5 {[%emt 0:00:30]} (39... Ra3 $19 {[%cal Ra3f3]} 40. Re7+ Kd8) 40. Re3 $17 {[%emt 0:00:30]} Rgf6 {[%emt 0:00:30]} 41. Bg4 {[%emt 0:15:30]} Rg5 {[%emt 0:15:30]} 42. Rh5 {[%emt 0:00:30]} Rxh5+ {[%emt 0:00:30]} ({Inferior is} 42... Rxf2 43. Rxg5 hxg5 44. Re7+ Kb8 45. Rxg7 $11) 43. Bxh5 {[%mdl 4096] Endgame KRB-KRN} g6 {[%emt 0:00:30]} 44. Bf3 {[%emt 0:01:00]} (44. Rf3 $17 {was worth a try.} Rxf3+ 45. Bxf3) 44... b5 $19 {[%emt 0:00:30]} 45. Kg4 {[%emt 0:00:30]} (45. Rc3+ $142 Kb6 46. Rc6+ Ka5 47. Be2) 45... Nc4 {[%emt 0:00:30]} 46. Rc3 {[%emt 0:00:30]} Kd6 {[%emt 0:00:30]} 47. Be2 {[%emt 0:00:30]} Kc5 {[%emt 0:00:30]} ({And not} 47... Rxf2 48. Bxc4 bxc4 49. Kg3 $15) 48. f4 {[%emt 0:00:30]} Kd4 {[%emt 0:00:30]} (48... Rf5 $17 {Strongly threatening ...Rd5.} 49. h4 Rf6) 49. Rb3 $2 {[%emt 0:00:30][%mdl 8192] Now White is beyond hope.} (49. Rd3+ $1 $15 Kc5 50. h4) 49... Re6 {[%emt 0:00:30]} 50. Rd3+ {[%emt 0:00:30]} Kc5 {[%emt 0:00:30]} 51. Bf3 {[%emt 0:00:30]} Ne3+ {[%emt 0:00:30]} 52. Kg3 {[%emt 0:00:30]} b4 {[%emt 0:00:30]} 53. Kf2 {[%emt 0:00:30]} Nf5 {[%emt 0:00:30]} 54. Rd5+ {[%emt 0:00:30]} (54. Rd8 {is a better defense.}) 54... Kc4 {[%emt 0:00:30]} 55. Rd8 {[%emt 0:00:30] Black must now prevent Bd5+.} Nd6 {[%emt 0:00:30]} 56. Rb8 {[%emt 0:00:30]} Rf6 {[%emt 0:00:30]} 57. Ke3 {[%emt 0:00:30]} Kc3 {[%emt 0:00:30] ...Nc4+ is the strong threat.} 58. Bd5 {[%emt 0:00:30]} Nc4+ {[%emt 0:00:30]} (58... Rf5 $142 59. Bg8 Nc4+ 60. Ke4 Rc5) 59. Ke4 {[%emt 0:00:30] aiming for Rc8.} Nb6 {[%emt 0:00:30] Against Rc8+} 60. Ba2 {[%emt 0:00:30]} (60. Bg8 {was forced.}) 60... Nc4 {[%emt 0:00:30]} 61. h4 {[%emt 0:00:30]} h5 {[%emt 0:00:30] Threatens to win with ...Ra6.} 62. Bxc4 {[%emt 0:00:30]} (62. Rc8 b3 63. Bb1) 62... Kxc4 {[%emt 0:00:30] Black is clearly winning.} 63. Rc8+ {[%emt 0:00:30]} Kb5 {[%emt 0:00:30] Hoping for ...b3.} 64. Ke5 {[%emt 0:00:30]} Rc6 {[%emt 0:00:30] Weighted Error Value: White=0.38/Black=0.15 (very precise)} 0-1

[Event "2nd Serbia Open Masters 2022"]
[Site "Novi Sad"]
[Date "2022.06.30"]
[Round "3.48"]
[White "Koutlas, Nikolaos"]
[Black "Mendonca, Leon Luke"]
[Result "1/2-1/2"]
[ECO "B12"]
[WhiteElo "2251"]
[BlackElo "2551"]
[Annotator "TA"]
[PlyCount "105"]
[EventDate "2022.06.28"]
[EventType "swiss"]
[EventCountry "SRB"]
[SourceTitle "playchess.com"]
[Source "ChessBase"]
[SourceQuality "1"]
[TimeControl "40/5400+30:900+30"]

{[%evp 9,105,15,27,24,46,13,14,18,52,37,38,38,31,19,12,0,0,0,0,0,0,0,0,0,0,0,0,0,0,0,0,0,0,0,-2,-9,-2,-9,-2,-5,0,-9,0,0,0,-16,-9,-9,-10,-14,-17,-14,0,0,0,-16,-20,-16,-8,-8,-14,-48,0,0,0,0,0,-29,0,0,0,0,0,0,0,0,0,0,0,0,0,0,0,0,0,0,0,0,0,0,0,0,0,0,0,0,0,0]} 1. e4 {[%emt 0:00:03]} c6 {[%emt 0:00:07]} 2. d4 {[%emt 0:00:12]} d5 {[%emt 0:00:05]} 3. f3 {[%emt 0:00:09]} dxe4 {[%emt 0:01:07]} 4. fxe4 {[%emt 0:01:57]} e5 {[%emt 0:00:06]} 5. Nf3 {[%emt 0:00:07]} Bg4 {[%emt 0:00:45]} 6. c3 {[%emt 0:00:09] B12: Caro-Kann: Advance Variation.} Nd7 {[%emt 0:02:13]} 7. Be2 {[%emt 0:00:38]} Bd6 {[%emt 0:03:04]} 8. Nbd2 {[%emt 0:01:25]} Ngf6 {[%emt 0:18:23]} 9. Nc4 {[%emt 0:08:47][%csl LRd6,LRe5] [#]} Qe7 $146 {[%emt 0:09:00]} (9... Nxe4 $2 {[#]} 10. Ng5 $1 {[%mdl 512]} Bxe2 11. Qxe2 $18) ({Predecessor:} 9... Bc7 10. Nfxe5 Nxe5 11. Nxe5 Bxe2 12. Qxe2 Bxe5 13. dxe5 Nd7 14. e6 fxe6 15. O-O Qe7 {½-½ (49) Sabirov,R (1704)-Gallasch,R (2063) Willingen 2022}) 10. Nxd6+ {[%emt 0:27:57]} Qxd6 {[%emt 0:00:08]} 11. O-O {[%emt 0:54:36]} O-O {[%emt 0:18:06]} 12. Nxe5 {[%emt 0:00:00]} Bxe2 {[%emt 0:01:03]} 13. Qxe2 {[%emt 0:00:00]} Nxe5 {[%emt 0:00:04]} 14. Bf4 {[%emt 0:00:00][%mdl 64] [#] Pin} Nfd7 {[%emt 0:00:29]} 15. Rad1 {[%emt 0:00:00]} Qe6 {[%emt 0:04:47] And now ...Ng6 would win.} 16. dxe5 {[%emt 0:00:00]} Nxe5 {[%emt 0:00:11]} 17. Bxe5 {[%emt 0:00:00]} Qxe5 {[%emt 0:00:01]} 18. Rd7 {[%emt 0:00:00]} b5 {[%emt 0:03:22] Prevents Qc4.} 19. Qf2 {[%emt 0:00:00][%csl LRa7,LRf7][%cal Rd7f7]} Qe6 {[%emt 0:03:18]} 20. Rxa7 {[%emt 0:00:00]} Rxa7 {[%emt 0:00:19]} 21. Qxa7 {[%emt 0:00:00]} Qxe4 $11 {[%emt 0:00:09][%mdl 4096] Endgame KQR-KQR} 22. Qd4 {[%emt 0:00:00]} Qe6 {[%emt 0:01:23]} 23. b3 {[%emt 0:00:00]} h6 {[%emt 0:01:01]} 24. h3 $1 {[%emt 0:00:00]} Re8 {[%emt 0:01:42]} 25. Rf2 {[%emt 0:00:00]} Qg6 {[%emt 0:02:40]} 26. Kh2 {[%emt 0:00:00]} Qe6 {[%emt 0:09:23]} 27. c4 {[%emt 0:00:00]} bxc4 {[%emt 0:04:49]} 28. Qxc4 {[%emt 0:00:00]} Qxc4 {[%emt 0:00:17]} 29. bxc4 {[%emt 0:00:00] KR-KR} Ra8 {[%emt 0:01:20]} 30. Kg3 {[%emt 0:00:00]} Kf8 {[%emt 0:02:02]} 31. Kf4 $1 {[%emt 0:01:31]} Ra4 {[%emt 0:01:50]} 32. Rc2 {[%emt 0:00:49]} Ke7 {[%emt 0:00:52]} 33. Ke5 {[%emt 0:00:09]} f6+ {[%emt 0:02:03]} 34. Kf5 {[%emt 0:02:02]} Kf7 {[%emt 0:00:54]} 35. h4 {[%emt 0:01:48]} g6+ {[%emt 0:03:05]} (35... Ra5+ $15 36. Ke4 Ke6) 36. Ke4 $1 {[%emt 0:00:06]} Ke6 {[%emt 0:01:32]} 37. Kd4 {[%emt 0:00:35]} Kd6 {[%emt 0:00:48]} 38. g4 {[%emt 0:03:44]} (38. Rf2 $5 {[%cal Rf2f6]} Ke6 39. Re2+ Kd7 40. Rf2 $11) 38... c5+ {[%emt 0:04:33]} 39. Ke4 {[%emt 0:00:12] The position is equal.} Ke6 {[%emt 0:00:10]} 40. h5 {[%emt 0:00:00]} g5 {[%emt 0:00:00][%cal Bg6g5,Bg5g4][%mdl 32]} 41. a3 $1 {[%emt 0:04:23]} f5+ {[%emt 0:11:08]} 42. gxf5+ {[%emt 0:00:03]} Kf6 {[%emt 0:00:00]} 43. Rc3 {[%emt 0:01:36]} Ra8 {[%emt 0:01:26]} 44. Kd5 {[%emt 0:03:21]} Rc8 {[%emt 0:02:55]} 45. Rf3 {[%emt 0:03:34] a4 is the strong threat.} g4 {[%emt 0:01:16]} 46. Rf1 {[%emt 0:01:26] Strongly threatening a4.} g3 {[%emt 0:00:56]} 47. Rg1 {[%emt 0:01:59]} Rg8 {[%emt 0:00:13]} 48. Ke4 {[%emt 0:01:27]} Rg4+ {[%emt 0:01:42]} 49. Kf3 {[%emt 0:00:11]} Rxc4 {[%emt 0:00:29]} 50. Rxg3 {[%emt 0:00:06]} Kxf5 {[%emt 0:00:09]} 51. Rg6 {[%emt 0:00:06]} Rc3+ {[%emt 0:00:08]} 52. Ke2 {[%emt 0:00:04]} Rxa3 {[%emt 0:00:09]} 53. Rxh6 {[%emt 0:00:09] Weighted Error Value: White=0.04 (flawless) /Black=0.05 (flawless)} 1/2-1/2